[Event "2nd FIDE WCC Rapid G12"]
[Site "Minsk"]
[Date "2018.06.23"]
[Round "8"]
[White "Shubenkova, Veronika"]
[Black "Nguyen, Hong Nhung"]
[Result "1-0"]
[ECO "A80"]
[WhiteElo "1700"]
[BlackElo "1518"]
[Annotator "NA RC"]
[PlyCount "141"]
[EventDate "2018.06.22"]
[EventType "rapid"]
[EventCountry "BLR"]
[SourceTitle "playchess.com"]
[Source "ChessBase"]
[SourceQuality "1"]
[TimeControl "600+5"]

1. d4 {[%emt 0:00:02]} f5 {[%emt 0:00:01]} 2. e3 {[%emt 0:00:02]} Nf6 {[%emt 0:00:02]} 3. Nf3 {[%emt 0:00:43]} g6 {[%emt 0:00:02]} 4. b3 {[%emt 0:00:12]} Bg7 {[%emt 0:00:02]} 5. Bb2 {[%emt 0:00:01]} O-O {[%emt 0:00:04]} 6. Bd3 {[%emt 0:00:23]} d6 {[%emt 0:00:09]} 7. Nbd2 {[%emt 0:00:51]} Qe8 {[%emt 0:00:12]} 8. O-O {[%emt 0:00:39]} Nbd7 {[%emt 0:00:29]} 9. e4 {[%emt 0:01:15]} e5 {[%emt 0:01:26]} 10. dxe5 {[%emt 0:01:26]} dxe5 {[%emt 0:00:02]} 11. Ba3 {[%emt 0:00:35]} c5 {[%emt 0:00:06]} 12. Ng5 {[%emt 0:00:24]} Qe7 {[%emt 0:01:55]} 13. Bc4+ {[%emt 0:00:28]} Kh8 {[%emt 0:00:01]} 14. Ne6 {[%emt 0:00:22]} b5 {[%emt 0:00:59]} 15. Nxf8 {[%emt 0:00:20]} bxc4 {[%emt 0:00:02]} 16. Nxd7 {[%emt 0:00:02]} Bxd7 {[%emt 0:00:01]} 17. Nxc4 {[%emt 0:00:18]} Nxe4 {[%emt 0:00:07]} 18. Bb2 {[%emt 0:00:21]} Rd8 {[%emt 0:00:17]} 19. Qe2 {[%emt 0:00:03]} Bc6 {[%emt 0:00:21]} 20. f3 {[%emt 0:00:08]} Nd6 {[%emt 0:00:34]} 21. Nxe5 {[%emt 0:00:09]} Re8 {[%emt 0:00:14]} 22. Rfe1 {[%emt 0:00:02]} Qc7 {[%emt 0:00:43]} 23. Qf1 {[%emt 0:00:28]} Bb5 {[%emt 0:00:38]} 24. c4 {[%emt 0:00:03]} Ba6 {[%emt 0:00:04]} 25. Nd3 {[%emt 0:00:09]} Bxb2 {[%emt 0:00:07]} 26. Nxb2 {[%emt 0:00:01]} Bb7 {[%emt 0:00:17]} 27. Rxe8+ {[%emt 0:00:04]} Nxe8 {[%emt 0:00:02]} 28. Qe2 {[%emt 0:00:03]} Nf6 {[%emt 0:00:10]} 29. Re1 {[%emt 0:00:05]} Qf4 {[%emt 0:00:34]} 30. Qe3 {[%emt 0:00:24]} Qh4 {[%emt 0:00:13]} 31. Nd3 {[%emt 0:00:21]} g5 {[%emt 0:00:19]} 32. Nxc5 {[%emt 0:00:08]} Bc8 {[%emt 0:00:28]} 33. Rd1 {[%emt 0:00:20]} f4 {[%emt 0:00:19]} 34. Rd8+ {[%emt 0:00:03]} Kg7 {[%emt 0:00:01]} 35. Qe7+ {[%emt 0:00:02]} Kg6 {[%emt 0:00:02]} 36. Rxc8 {[%emt 0:00:18]} g4 {[%emt 0:00:09]} 37. Rc6 {[%emt 0:00:14]} gxf3 {[%emt 0:00:05]} 38. Rxf6+ {[%emt 0:00:03]} Qxf6 {[%emt 0:00:07]} 39. Qxf6+ {[%emt 0:00:01]} Kxf6 {[%emt 0:00:01]} 40. gxf3 {[%emt 0:00:02]} Ke5 {[%emt 0:00:03]} 41. Nd3+ {[%emt 0:00:06]} Kf5 {[%emt 0:00:01]} 42. Kf2 {[%emt 0:00:01]} Kg5 {[%emt 0:00:02]} 43. c5 {[%emt 0:00:03]} Kf5 {[%emt 0:00:01]} 44. c6 {[%emt 0:00:02]} Ke6 {[%emt 0:00:01]} 45. Nxf4+ {[%emt 0:00:02]} Kd6 {[%emt 0:00:01]} 46. Nh5 {[%emt 0:00:02]} Kxc6 {[%emt 0:00:01]} 47. Nf6 {[%emt 0:00:02]} h6 {[%emt 0:00:03]} 48. Kg3 {[%emt 0:00:02]} Kd6 {[%emt 0:00:01]} 49. Kg4 {[%emt 0:00:02]} Ke6 {[%emt 0:00:01]} 50. Ne4 {[%emt 0:00:01]} Kf7 {[%emt 0:00:02]} 51. Nd6+ {[%emt 0:00:02]} Kg6 {[%emt 0:00:02]} 52. a4 {[%emt 0:00:03]} a5 {[%emt 0:00:03]} 53. Nc4 {[%emt 0:00:02]} h5+ {[%emt 0:00:01]} 54. Kg3 {[%emt 0:00:01]} Kg5 {[%emt 0:00:02]} 55. Nxa5 {[%emt 0:00:01]} Kf5 {[%emt 0:00:01]} 56. Nc4 {[%emt 0:00:02]} Kg5 {[%emt 0:00:01]} 57. a5 {[%emt 0:00:01]} Kf5 {[%emt 0:00:02]} 58. a6 {[%emt 0:00:01]} Kg5 {[%emt 0:00:01]} 59. a7 {[%emt 0:00:00]} h4+ {[%emt 0:00:02]} 60. Kf2 {[%emt 0:00:01]} h3 {[%emt 0:00:02]} 61. a8=Q {[%emt 0:00:03]} Kh4 {[%emt 0:00:01]} 62. Qe4+ {[%emt 0:00:02]} Kg5 {[%emt 0:00:02]} 63. Qg4+ {[%emt 0:00:01]} Kf6 {[%emt 0:00:01]} 64. Ne3 {[%emt 0:00:04]} Ke5 {[%emt 0:00:01]} 65. Qe4+ {[%emt 0:00:02]} Kf6 {[%emt 0:00:02]} 66. Ng4+ {[%emt 0:00:02]} Kf7 {[%emt 0:00:01]} 67. Qf5+ {[%emt 0:00:02]} Ke7 {[%emt 0:00:01]} 68. Qf6+ {[%emt 0:00:01]} Kd7 {[%emt 0:00:01]} 69. Ne5+ {[%emt 0:00:01]} Kc7 {[%emt 0:00:01]} 70. Qc6+ {[%emt 0:00:01]} Kd8 {[%emt 0:00:02]} 71. Qd7# {[%emt 0:00:01]} 1-0

[Event "2nd FIDE WCC Rapid G12"]
[Site "Minsk"]
[Date "2018.06.23"]
[Round "8"]
[White "Cherepanova, Evita"]
[Black "Starosta, Martyna"]
[Result "1-0"]
[ECO "C50"]
[WhiteElo "1604"]
[BlackElo "1537"]
[Annotator "NA RC"]
[PlyCount "53"]
[EventDate "2018.06.22"]
[EventType "rapid"]
[EventCountry "BLR"]
[SourceTitle "playchess.com"]
[Source "ChessBase"]
[SourceQuality "1"]
[TimeControl "600+5"]

1. e4 {[%emt 0:00:00]} e5 {[%emt 0:00:01]} 2. Nf3 {[%emt 0:00:00]} Nc6 {[%emt 0:00:02]} 3. Bc4 {[%emt 0:00:00]} Nf6 {[%emt 0:00:01]} 4. d3 {[%emt 0:00:01]} Bc5 {[%emt 0:00:06]} 5. O-O {[%emt 0:00:03]} O-O {[%emt 0:00:06]} 6. c3 {[%emt 0:00:07]} a6 {[%emt 0:00:06]} 7. Bb3 {[%emt 0:00:02]} d6 {[%emt 0:00:04]} 8. h3 {[%emt 0:00:03]} h6 {[%emt 0:00:17]} 9. Nbd2 {[%emt 0:00:11]} Ne7 {[%emt 0:00:19]} 10. Re1 {[%emt 0:00:04]} Ng6 {[%emt 0:00:33]} 11. Nf1 {[%emt 0:00:04]} Re8 {[%emt 0:00:37]} 12. Ng3 {[%emt 0:01:01]} d5 {[%emt 0:00:35]} 13. exd5 {[%emt 0:00:28]} Nxd5 {[%emt 0:00:51]} 14. Ne4 {[%emt 0:00:32]} Ba7 {[%emt 0:00:16]} 15. Bxh6 {[%emt 0:01:56]} Nxc3 {[%emt 0:01:05]} 16. bxc3 {[%emt 0:00:20]} gxh6 {[%emt 0:00:04]} 17. Qd2 {[%emt 0:01:44]} Kg7 {[%emt 0:00:04]} 18. Ng3 {[%emt 0:00:14]} Bd7 {[%emt 0:01:40]} 19. Nh5+ {[%emt 0:00:30]} Kh7 {[%emt 0:00:26]} 20. Bxf7 {[%emt 0:00:07]} Rf8 {[%emt 0:00:40]} 21. Bxg6+ {[%emt 0:00:10]} Kxg6 {[%emt 0:00:03]} 22. Rxe5 {[%emt 0:00:28]} Rg8 {[%emt 0:02:12]} 23. Rae1 {[%emt 0:00:26]} c6 {[%emt 0:00:42]} 24. Re7 {[%emt 0:00:29]} Kxh5 {[%emt 0:00:41]} 25. R1e5+ {[%emt 0:00:03]} Kg6 {[%emt 0:00:02]} 26. Nh4+ {[%emt 0:00:03]} Kf6 {[%emt 0:00:09]} 27. Qf4+ {[%emt 0:00:03]} 1-0

[Event "2nd FIDE WCC Rapid G12"]
[Site "Minsk"]
[Date "2018.06.23"]
[Round "8"]
[White "Ivanytska, Liudmyla"]
[Black "Nguyen, Linh Dan"]
[Result "0-1"]
[ECO "B33"]
[WhiteElo "1545"]
[BlackElo "1325"]
[Annotator "NA RC"]
[PlyCount "110"]
[EventDate "2018.06.22"]
[EventType "rapid"]
[EventCountry "BLR"]
[SourceTitle "playchess.com"]
[Source "ChessBase"]
[SourceQuality "1"]
[TimeControl "600+5"]

1. e4 {[%emt 0:00:00]} c5 {[%emt 0:00:01]} 2. Nf3 {[%emt 0:00:00]} Nc6 {[%emt 0:00:01]} 3. d4 {[%emt 0:00:00]} cxd4 {[%emt 0:00:01]} 4. Nxd4 {[%emt 0:00:00]} Nf6 {[%emt 0:00:02]} 5. Nc3 {[%emt 0:00:00]} e5 {[%emt 0:00:01]} 6. Ndb5 {[%emt 0:00:03]} d6 {[%emt 0:00:01]} 7. Bg5 {[%emt 0:00:11]} a6 {[%emt 0:00:01]} 8. Na3 {[%emt 0:00:01]} b5 {[%emt 0:00:01]} 9. Nd5 {[%emt 0:00:11]} Be7 {[%emt 0:00:02]} 10. Bxf6 {[%emt 0:00:05]} Bxf6 {[%emt 0:00:01]} 11. c3 {[%emt 0:00:01]} Bg5 {[%emt 0:00:03]} 12. Be2 {[%emt 0:00:14]} O-O {[%emt 0:00:03]} 13. O-O {[%emt 0:00:01]} Ne7 {[%emt 0:00:02]} 14. Nxe7+ {[%emt 0:00:12]} Qxe7 {[%emt 0:00:02]} 15. Nc2 {[%emt 0:00:03]} Bb7 {[%emt 0:00:03]} 16. f3 {[%emt 0:00:04]} d5 {[%emt 0:00:27]} 17. exd5 {[%emt 0:00:08]} Qc5+ {[%emt 0:00:01]} 18. Kh1 {[%emt 0:00:02]} Qxd5 {[%emt 0:00:04]} 19. Nb4 {[%emt 0:00:15]} Qxd1 {[%emt 0:00:24]} 20. Raxd1 {[%emt 0:00:06]} Rfd8 {[%emt 0:00:05]} 21. h3 {[%emt 0:00:25]} Be7 {[%emt 0:01:01]} 22. Nc2 {[%emt 0:00:15]} Rac8 {[%emt 0:00:13]} 23. Ne3 {[%emt 0:00:12]} Bc5 {[%emt 0:00:19]} 24. Nf5 {[%emt 0:00:09]} g6 {[%emt 0:00:14]} 25. Nh6+ {[%emt 0:00:04]} Kg7 {[%emt 0:00:02]} 26. Ng4 {[%emt 0:00:02]} f6 {[%emt 0:00:10]} 27. Nh2 {[%emt 0:00:31]} Bd5 {[%emt 0:00:13]} 28. Ra1 {[%emt 0:01:01]} Be6 {[%emt 0:00:08]} 29. Rfd1 {[%emt 0:03:37]} Bb6 {[%emt 0:01:37]} 30. a4 {[%emt 0:00:23]} bxa4 {[%emt 0:00:07]} 31. Bxa6 {[%emt 0:00:15]} Bb3 {[%emt 0:00:40]} 32. Rxd8 {[%emt 0:01:08]} Rxd8 {[%emt 0:00:04]} 33. Nf1 {[%emt 0:00:01]} Kf7 {[%emt 0:00:59]} 34. g4 {[%emt 0:00:04]} f5 {[%emt 0:00:51]} 35. Bb5 {[%emt 0:00:06]} fxg4 {[%emt 0:00:15]} 36. hxg4 {[%emt 0:00:09]} Kf6 {[%emt 0:00:21]} 37. Kg2 {[%emt 0:00:31]} Kg5 {[%emt 0:00:17]} 38. Re1 {[%emt 0:00:14]} Rd5 {[%emt 0:00:29]} 39. c4 {[%emt 0:00:28]} Rc5 {[%emt 0:00:16]} 40. Nd2 {[%emt 0:00:01]} Bc2 {[%emt 0:00:18]} 41. Ne4+ {[%emt 0:00:01]} Bxe4 {[%emt 0:00:07]} 42. Rxe4 {[%emt 0:00:01]} Bc7 {[%emt 0:00:18]} 43. Bxa4 {[%emt 0:00:09]} Ra5 {[%emt 0:00:02]} 44. b3 {[%emt 0:00:02]} Bd6 {[%emt 0:00:03]} 45. Re1 {[%emt 0:00:10]} Ra8 {[%emt 0:00:36]} 46. Rd1 {[%emt 0:00:02]} Bb4 {[%emt 0:00:12]} 47. Rd5 {[%emt 0:00:28]} Kf4 {[%emt 0:00:03]} 48. Rd7 {[%emt 0:00:03]} h6 {[%emt 0:00:22]} 49. Kf2 {[%emt 0:00:21]} Bc5+ {[%emt 0:00:08]} 50. Ke2 {[%emt 0:00:01]} Kg3 {[%emt 0:00:11]} 51. Rh7 {[%emt 0:00:48]} Rd8 {[%emt 0:00:42]} 52. Rxh6 {[%emt 0:00:33]} g5 {[%emt 0:00:19]} 53. Rf6 {[%emt 0:00:19]} Bb4 {[%emt 0:00:20]} 54. Rf5 {[%emt 0:00:03]} Rd2+ {[%emt 0:00:02]} 55. Ke3 {[%emt 0:00:10]} Rf2 {[%emt 0:00:17]} 0-1

[Event "2nd FIDE WCC Rapid G12"]
[Site "Minsk"]
[Date "2018.06.23"]
[Round "8"]
[White "Andrukhovich, Elizaveta"]
[Black "Blokhin, Sofia"]
[Result "0-1"]
[ECO "B23"]
[WhiteElo "1472"]
[BlackElo "1500"]
[Annotator "NA RC"]
[PlyCount "116"]
[EventDate "2018.06.22"]
[EventType "rapid"]
[EventCountry "BLR"]
[SourceTitle "playchess.com"]
[Source "ChessBase"]
[SourceQuality "1"]
[TimeControl "600+5"]

1. e4 {[%emt 0:00:00]} c5 {[%emt 0:00:01]} 2. Nc3 {[%emt 0:00:00]} e6 {[%emt 0:00:04]} 3. g3 {[%emt 0:00:00]} g6 {[%emt 0:00:02]} 4. Bg2 {[%emt 0:00:01]} Bg7 {[%emt 0:00:01]} 5. d3 {[%emt 0:00:01]} Ne7 {[%emt 0:00:02]} 6. f4 {[%emt 0:00:05]} O-O {[%emt 0:00:03]} 7. Nf3 {[%emt 0:00:02]} Nbc6 {[%emt 0:00:05]} 8. O-O {[%emt 0:00:06]} d5 {[%emt 0:00:04]} 9. exd5 {[%emt 0:00:27]} exd5 {[%emt 0:00:04]} 10. Ne2 {[%emt 0:00:21]} b6 {[%emt 0:00:19]} 11. d4 {[%emt 0:00:15]} Nf5 {[%emt 0:00:50]} 12. c3 {[%emt 0:00:21]} Ba6 {[%emt 0:00:49]} 13. g4 {[%emt 0:01:42]} Nfe7 {[%emt 0:00:14]} 14. Re1 {[%emt 0:00:20]} f5 {[%emt 0:00:24]} 15. g5 {[%emt 0:00:31]} c4 {[%emt 0:00:49]} 16. Ne5 {[%emt 0:00:43]} b5 {[%emt 0:00:45]} 17. Ng3 {[%emt 0:00:59]} Nxe5 {[%emt 0:00:21]} 18. dxe5 {[%emt 0:00:19]} Bb7 {[%emt 0:00:39]} 19. Ne2 {[%emt 0:00:37]} Qb6+ {[%emt 0:00:23]} 20. Nd4 {[%emt 0:00:09]} a6 {[%emt 0:01:20]} 21. Be3 {[%emt 0:00:09]} Rfe8 {[%emt 0:01:51]} 22. Nxf5 {[%emt 0:00:25]} Qe6 {[%emt 0:00:12]} 23. Nd6 {[%emt 0:00:46]} Reb8 {[%emt 0:00:04]} 24. Bc5 {[%emt 0:00:53]} Bc6 {[%emt 0:00:23]} 25. Qd4 {[%emt 0:00:32]} Nc8 {[%emt 0:00:18]} 26. Nxc8 {[%emt 0:00:09]} Rxc8 27. Rad1 {[%emt 0:00:20]} Rd8 {[%emt 0:00:13]} 28. Bd6 {[%emt 0:00:12]} Rxd6 {[%emt 0:00:25]} 29. exd6 {[%emt 0:01:24]} Bxd4+ {[%emt 0:00:03]} 30. cxd4 {[%emt 0:00:01]} Qxd6 {[%emt 0:00:04]} 31. Re5 {[%emt 0:00:10]} Re8 {[%emt 0:00:10]} 32. Rde1 {[%emt 0:00:04]} Rxe5 {[%emt 0:00:05]} 33. fxe5 {[%emt 0:00:08]} Qe6 {[%emt 0:00:12]} 34. Rf1 {[%emt 0:00:10]} Qg4 {[%emt 0:00:10]} 35. Rf6 {[%emt 0:00:09]} Qxd4+ {[%emt 0:00:06]} 36. Kf1 {[%emt 0:00:15]} Qc5 {[%emt 0:00:26]} 37. e6 {[%emt 0:00:07]} Qe7 {[%emt 0:00:12]} 38. Bh3 {[%emt 0:00:06]} d4 {[%emt 0:00:18]} 39. Rf4 {[%emt 0:00:06]} Qxg5 {[%emt 0:00:06]} 40. Rg4 {[%emt 0:00:08]} Qf5+ {[%emt 0:00:14]} 41. Ke1 {[%emt 0:00:04]} Qxe6+ {[%emt 0:00:03]} 42. Kd2 {[%emt 0:00:02]} Qxg4 {[%emt 0:00:07]} 43. Bxg4 {[%emt 0:00:02]} Kf7 {[%emt 0:00:03]} 44. h4 {[%emt 0:00:07]} Kf6 {[%emt 0:00:01]} 45. Bc8 {[%emt 0:00:03]} a5 {[%emt 0:00:02]} 46. Ba6 {[%emt 0:00:07]} Ke5 {[%emt 0:00:02]} 47. b3 {[%emt 0:00:06]} c3+ {[%emt 0:00:03]} 48. Kd1 {[%emt 0:00:06]} Ke4 {[%emt 0:00:03]} 49. a4 {[%emt 0:00:07]} bxa4 {[%emt 0:00:03]} 50. bxa4 {[%emt 0:00:03]} Bxa4+ 51. Kc1 {[%emt 0:00:00]} Ke3 {[%emt 0:00:03]} 52. Bc4 {[%emt 0:00:01]} d3 {[%emt 0:00:02]} 53. h5 {[%emt 0:00:07]} d2+ {[%emt 0:00:01]} 54. Kb1 {[%emt 0:00:01]} d1=Q+ {[%emt 0:00:01]} 55. Ka2 {[%emt 0:00:01]} Qd2+ {[%emt 0:00:13]} 56. Ka3 {[%emt 0:00:04]} c2 {[%emt 0:00:04]} 57. hxg6 {[%emt 0:00:05]} c1=Q+ {[%emt 0:00:02]} 58. Kxa4 {[%emt 0:00:02]} Qb4# {[%emt 0:00:02]} 0-1

[Event "2nd FIDE WCC Rapid G12"]
[Site "Minsk"]
[Date "2018.06.23"]
[Round "8"]
[White "Khabibullaeva, Mokhinur"]
[Black "Tarasenka, Aliaksandra"]
[Result "1-0"]
[ECO "A81"]
[WhiteElo "1462"]
[BlackElo "1747"]
[Annotator "NA RC"]
[PlyCount "177"]
[EventDate "2018.06.22"]
[EventType "rapid"]
[EventCountry "BLR"]
[SourceTitle "playchess.com"]
[Source "ChessBase"]
[SourceQuality "1"]
[TimeControl "600+5"]

1. d4 {[%emt 0:00:00]} f5 {[%emt 0:00:01]} 2. g3 {[%emt 0:00:00]} g6 {[%emt 0:00:02]} 3. Bg2 {[%emt 0:00:00]} Bg7 {[%emt 0:00:01]} 4. Nf3 {[%emt 0:00:01]} Nf6 {[%emt 0:00:03]} 5. O-O {[%emt 0:00:01]} d6 {[%emt 0:00:03]} 6. b3 {[%emt 0:00:02]} O-O {[%emt 0:00:18]} 7. Bb2 {[%emt 0:00:02]} Nc6 {[%emt 0:00:16]} 8. c4 {[%emt 0:00:05]} e5 {[%emt 0:00:19]} 9. dxe5 {[%emt 0:00:08]} Ng4 {[%emt 0:00:02]} 10. Qc2 {[%emt 0:01:04]} dxe5 {[%emt 0:00:42]} 11. Rd1 {[%emt 0:00:04]} Qe8 {[%emt 0:01:35]} 12. h3 {[%emt 0:01:09]} e4 {[%emt 0:02:04]} 13. Bxg7 {[%emt 0:02:06]} Kxg7 {[%emt 0:00:20]} 14. Qb2+ {[%emt 0:01:33]} Nf6 {[%emt 0:01:00]} 15. Nd4 {[%emt 0:00:36]} Be6 {[%emt 0:01:39]} 16. Nc3 {[%emt 0:00:28]} Rd8 {[%emt 0:00:55]} 17. Ncb5 {[%emt 0:00:32]} Nxd4 {[%emt 0:01:04]} 18. Nxd4 {[%emt 0:00:11]} c6 {[%emt 0:00:14]} 19. Rd2 {[%emt 0:00:09]} Bf7 {[%emt 0:00:42]} 20. e3 {[%emt 0:00:20]} Qe7 {[%emt 0:00:16]} 21. Rad1 {[%emt 0:00:04]} Kg8 {[%emt 0:00:02]} 22. Bf1 {[%emt 0:00:21]} Nd7 {[%emt 0:00:03]} 23. Qc3 {[%emt 0:00:08]} Ne5 {[%emt 0:00:06]} 24. Be2 {[%emt 0:00:25]} c5 {[%emt 0:00:11]} 25. Nb5 {[%emt 0:00:12]} a6 {[%emt 0:00:03]} 26. Nd6 {[%emt 0:00:11]} Nc6 {[%emt 0:00:07]} 27. Nxf7 {[%emt 0:00:09]} Qxf7 {[%emt 0:00:04]} 28. Rd5 {[%emt 0:00:06]} b6 {[%emt 0:00:05]} 29. Qd2 {[%emt 0:00:10]} Rxd5 {[%emt 0:00:03]} 30. cxd5 {[%emt 0:00:01]} Ne5 {[%emt 0:00:03]} 31. Kg2 {[%emt 0:00:10]} b5 {[%emt 0:00:01]} 32. Qc3 {[%emt 0:00:11]} Nd7 {[%emt 0:00:06]} 33. a4 {[%emt 0:00:05]} b4 {[%emt 0:00:08]} 34. Qb2 {[%emt 0:00:08]} a5 {[%emt 0:00:02]} 35. Bc4 Qf6 {[%emt 0:00:11]} 36. d6+ {[%emt 0:00:29]} Kg7 {[%emt 0:00:02]} 37. Qc2 {[%emt 0:00:27]} Rd8 {[%emt 0:00:11]} 38. Bb5 {[%emt 0:00:08]} Qe5 {[%emt 0:00:01]} 39. Bc6 {[%emt 0:00:25]} Nb8 {[%emt 0:00:06]} 40. Rd5 {[%emt 0:00:18]} Qe6 {[%emt 0:00:07]} 41. Qxc5 {[%emt 0:00:03]} Nxc6 {[%emt 0:00:03]} 42. Qxc6 {[%emt 0:00:01]} Rc8 {[%emt 0:00:02]} 43. Qb7+ {[%emt 0:00:02]} Kf6 {[%emt 0:00:04]} 44. d7 {[%emt 0:00:05]} Rd8 {[%emt 0:00:01]} 45. Qc7 {[%emt 0:00:38]} Qe7 {[%emt 0:00:13]} 46. Rd6+ {[%emt 0:00:12]} Kf7 {[%emt 0:00:01]} 47. Qc4+ {[%emt 0:00:04]} Kf8 {[%emt 0:00:01]} 48. Qd5 {[%emt 0:00:04]} h6 {[%emt 0:00:10]} 49. Rxg6 {[%emt 0:00:05]} Qxd7 {[%emt 0:00:09]} 50. Qg8+ {[%emt 0:00:03]} Ke7 {[%emt 0:00:02]} 51. Rg7+ {[%emt 0:00:02]} Kf6 {[%emt 0:00:04]} 52. Rg6+ {[%emt 0:00:01]} Ke5 {[%emt 0:00:01]} 53. Qc4 {[%emt 0:00:05]} Qd5 {[%emt 0:00:15]} 54. Qc7+ {[%emt 0:00:05]} Rd6 {[%emt 0:00:01]} 55. Qe7+ {[%emt 0:00:03]} Re6 {[%emt 0:00:01]} 56. Rxe6+ {[%emt 0:00:01]} Qxe6 {[%emt 0:00:01]} 57. Qxe6+ {[%emt 0:00:01]} Kxe6 {[%emt 0:00:01]} 58. f3 {[%emt 0:00:04]} Ke5 {[%emt 0:00:17]} 59. g4 {[%emt 0:00:06]} f4 {[%emt 0:00:08]} 60. exf4+ {[%emt 0:00:02]} Kxf4 {[%emt 0:00:01]} 61. fxe4 {[%emt 0:00:01]} Kxe4 {[%emt 0:00:01]} 62. Kg3 {[%emt 0:00:03]} Kd3 {[%emt 0:00:02]} 63. h4 {[%emt 0:00:01]} Kc3 {[%emt 0:00:00]} 64. g5 {[%emt 0:00:00]} Kxb3 {[%emt 0:00:14]} 65. gxh6 {[%emt 0:00:02]} Ka2 {[%emt 0:00:11]} 66. h7 {[%emt 0:00:01]} b3 {[%emt 0:00:01]} 67. h8=Q {[%emt 0:00:01]} b2 {[%emt 0:00:01]} 68. Qg8+ {[%emt 0:00:03]} Ka1 {[%emt 0:00:06]} 69. Qg7 {[%emt 0:00:06]} Ka2 {[%emt 0:00:02]} 70. Qf7+ {[%emt 0:00:01]} Ka1 {[%emt 0:00:01]} 71. Qf6 {[%emt 0:00:01]} Ka2 {[%emt 0:00:03]} 72. Qe6+ {[%emt 0:00:02]} Ka1 {[%emt 0:00:02]} 73. Qe5 {[%emt 0:00:01]} Ka2 {[%emt 0:00:01]} 74. Qd5+ {[%emt 0:00:01]} Ka1 {[%emt 0:00:01]} 75. Qd4 {[%emt 0:00:01]} Ka2 {[%emt 0:00:02]} 76. Qc4+ {[%emt 0:00:01]} Ka1 {[%emt 0:00:00]} 77. Qc3 {[%emt 0:00:02]} Ka2 {[%emt 0:00:02]} 78. Qc2 {[%emt 0:00:03]} Ka1 {[%emt 0:00:10]} 79. h5 {[%emt 0:00:13]} b1=Q {[%emt 0:00:02]} 80. Qxb1+ {[%emt 0:00:01]} Kxb1 {[%emt 0:00:01]} 81. h6 {[%emt 0:00:01]} Ka2 {[%emt 0:00:01]} 82. h7 {[%emt 0:00:01]} Ka3 {[%emt 0:00:01]} 83. h8=Q {[%emt 0:00:00]} Kxa4 {[%emt 0:00:02]} 84. Qa1+ {[%emt 0:00:01]} Kb4 {[%emt 0:00:01]} 85. Kf3 {[%emt 0:00:01]} a4 {[%emt 0:00:01]} 86. Ke3 {[%emt 0:00:00]} Kb3 {[%emt 0:00:01]} 87. Kd3 {[%emt 0:00:01]} a3 {[%emt 0:00:02]} 88. Kd2 {[%emt 0:00:03]} a2 {[%emt 0:00:02]} 89. Kc1 {[%emt 0:00:01]} 1-0

[Event "2nd FIDE WCC Rapid G12"]
[Site "Minsk"]
[Date "2018.06.23"]
[Round "8"]
[White "Shaban, Aliaksandra"]
[Black "Kudryavtseva, Anastasia"]
[Result "1-0"]
[ECO "E70"]
[WhiteElo "1425"]
[BlackElo "1420"]
[Annotator "NA RC"]
[PlyCount "101"]
[EventDate "2018.06.22"]
[EventType "rapid"]
[EventCountry "BLR"]
[SourceTitle "playchess.com"]
[Source "ChessBase"]
[SourceQuality "1"]
[TimeControl "600+5"]

1. d4 {[%emt 0:00:00]} Nf6 {[%emt 0:00:01]} 2. c4 {[%emt 0:00:00]} g6 {[%emt 0:00:01]} 3. Nc3 {[%emt 0:00:00]} Bg7 {[%emt 0:00:01]} 4. e4 {[%emt 0:00:00]} d6 {[%emt 0:00:00]} 5. Bg5 {[%emt 0:00:00]} h6 {[%emt 0:00:01]} 6. Be3 {[%emt 0:00:04]} O-O {[%emt 0:00:12]} 7. Be2 {[%emt 0:00:02]} c6 {[%emt 0:00:02]} 8. h3 {[%emt 0:00:07]} e5 {[%emt 0:00:21]} 9. d5 {[%emt 0:00:08]} c5 {[%emt 0:00:14]} 10. a3 {[%emt 0:00:07]} a6 {[%emt 0:00:33]} 11. b4 {[%emt 0:00:03]} Nbd7 {[%emt 0:00:08]} 12. Qc2 {[%emt 0:00:11]} b6 {[%emt 0:00:11]} 13. Nf3 {[%emt 0:00:12]} Bb7 {[%emt 0:00:34]} 14. Rb1 {[%emt 0:00:12]} Qc7 {[%emt 0:00:11]} 15. Nd2 {[%emt 0:00:10]} Kh7 {[%emt 0:00:27]} 16. Nb3 {[%emt 0:00:11]} Rfb8 {[%emt 0:00:34]} 17. O-O {[%emt 0:00:04]} Qd8 {[%emt 0:00:40]} 18. f4 {[%emt 0:00:27]} exf4 {[%emt 0:00:16]} 19. Bxf4 {[%emt 0:00:03]} Qe7 {[%emt 0:00:04]} 20. bxc5 {[%emt 0:00:13]} bxc5 {[%emt 0:00:02]} 21. Na5 {[%emt 0:00:07]} Ne5 {[%emt 0:00:27]} 22. Bxe5 {[%emt 0:01:08]} dxe5 {[%emt 0:00:02]} 23. Na4 {[%emt 0:00:10]} Ra7 {[%emt 0:00:48]} 24. Kh1 {[%emt 0:00:13]} Qc7 {[%emt 0:00:14]} 25. Nb3 {[%emt 0:00:27]} Bc8 {[%emt 0:01:21]} 26. Nbxc5 {[%emt 0:00:19]} Bd7 {[%emt 0:00:23]} 27. Nxd7 {[%emt 0:00:14]} Qxd7 {[%emt 0:00:01]} 28. Rxb8 {[%emt 0:00:03]} Qd6 {[%emt 0:00:25]} 29. Rbb1 {[%emt 0:00:07]} Qxa3 {[%emt 0:00:04]} 30. c5 {[%emt 0:00:13]} Qe3 {[%emt 0:00:19]} 31. Bd3 {[%emt 0:00:08]} Nh5 {[%emt 0:00:22]} 32. Rf3 {[%emt 0:00:09]} Qg5 {[%emt 0:00:08]} 33. c6 {[%emt 0:00:19]} Nf4 {[%emt 0:00:16]} 34. Nc5 {[%emt 0:00:23]} a5 {[%emt 0:00:08]} 35. d6 {[%emt 0:00:19]} Bf8 {[%emt 0:00:25]} 36. Nb7 {[%emt 0:00:07]} a4 {[%emt 0:00:13]} 37. Bf1 {[%emt 0:00:09]} Qf6 {[%emt 0:00:15]} 38. c7 {[%emt 0:00:13]} Bxd6 {[%emt 0:00:19]} 39. Nxd6 {[%emt 0:00:07]} Qxd6 {[%emt 0:00:04]} 40. c8=Q {[%emt 0:00:03]} a3 {[%emt 0:00:11]} 41. Qa2 {[%emt 0:00:05]} Kg7 {[%emt 0:00:06]} 42. Qcc2 {[%emt 0:00:17]} Rc7 {[%emt 0:00:06]} 43. Qcb3 {[%emt 0:00:03]} Ra7 {[%emt 0:00:02]} 44. Rd1 {[%emt 0:00:01]} Qe7 {[%emt 0:00:01]} 45. Qa1 {[%emt 0:00:07]} f6 {[%emt 0:00:05]} 46. Qba2 {[%emt 0:00:11]} Ne6 {[%emt 0:00:27]} 47. Rxa3 {[%emt 0:00:04]} Rc7 {[%emt 0:00:01]} 48. Bc4 {[%emt 0:00:06]} Nd4 {[%emt 0:00:02]} 49. Ra7 {[%emt 0:00:07]} g5 {[%emt 0:00:45]} 50. Rxc7 Qxc7 {[%emt 0:00:01]} 51. Qa7 {[%emt 0:00:05] Qd8} 1-0